Cogmind - Beta 14 @@@ ROGUE MODE // 2025.03.04 @ 23:40:37 Player: Cogchaaaan Result: Escaped! Performance ------------- Evolutions (9) 4500 Regions Visited (24) 4800 Robots Destroyed (328) 1640 Value Destroyed (14268) 14268 Prototype IDs (43) 860 Alien Tech Used (0) 0 Bonus (9475) 9475 TOTAL SCORE: 35543 Bonus ------- High Alert Combat Kills 1309 Follower Combat Kills 1876 Aligned with FarCom 300 Met Data Miner 300 Met Zhirov 300 Built Enhanced Grunts 300 Met R17 at Cetus 500 Met R17 at Research 2000 Win 3000 Friendly Fire -410 Cogmind --------- Core Integrity 1543/1600 Matter 300/300 Energy 796/815 System Corruption 3% Temperature Cool (17) Movement Treading (166) Location To Epsilon Eridani Parts ------- > --- POWER (3) -------- Antimatter Reactor Particle Reactor Quantum Reactor > --- PROPULSION (6) --- Improved Heavy Treads Improved Heavy Siege Treads Centrium Heavy Treads > --- UTILITY (12) ----- Advanced Heat Sink Advanced Heat Sink Huge Storage Unit Advanced Targeting Computer Advanced Target Analyzer Advanced Weapon Cycler Advanced Transmission Jammer Layered Medium Armor Plating Graphene Brace Advanced Force Field Improved System Shield Long-range Tractor Beam > --- WEAPON (4) ------- KE Penetrator Railgun Advanced KE Penetrator Linear Accelerator > --- INVENTORY (25) --- Medium Treads Biometal Medium Treads Biometal Medium Treads Advanced Heavy Siege Treads Advanced Heat Sink High-capacity Battery (250) Matter Compressor (250) Structural Scanner Layered Heavy Armor Plating Point Defense Array Hacking Suite Skeleton Box Variable Charge Gun Advanced Variable Charge Gun Nova Cannon Nova Cannon Proton Missile Launcher Gamma Bomb Array Missile Launcher Peak State ------------ > --- POWER ------------ Antimatter Reactor Particle Reactor Particle Reactor > --- PROPULSION ------- Improved Heavy Treads Improved Heavy Siege Treads Centrium Heavy Treads > --- UTILITY ---------- Advanced Heat Sink Advanced Heat Sink Huge Storage Unit Advanced Targeting Computer Advanced Target Analyzer Advanced Weapon Cycler Advanced Transmission Jammer Centrium Medium Armor Plating Graphene Brace Advanced Force Field Improved System Shield Long-range Tractor Beam > --- WEAPON ----------- Railgun Advanced KE Penetrator Advanced KE Penetrator Linear Accelerator > --- INVENTORY -------- Antimatter Reactor Quantum Reactor Medium Treads Biometal Medium Treads Biometal Medium Treads Advanced Heavy Siege Treads Advanced Heat Sink High-capacity Battery Matter Compressor Structural Scanner Layered Medium Armor Plating Layered Heavy Armor Plating Point Defense Array Hacking Suite Skeleton Box Variable Charge Gun Advanced Variable Charge Gun Nova Cannon Nova Cannon KE Penetrator Proton Missile Launcher Gamma Bomb Array Missile Launcher [Rating: 188] Favorites ----------- Power Improved Deuterium Engine Engine Improved Deuterium Engine Power Core Neutrino Core Reactor Antimatter Reactor Propulsion Armored Treads Treads Armored Treads Leg Aluminum Leg Utility Advanced Heat Sink Device Advanced Heat Sink Storage Huge Storage Unit Processor Improved Targeting Computer Hackware Improved System Shield Protection Medium Reactive Plating Weapon Enhanced Autogun Energy Gun Advanced Beam Rifle Energy Cannon Heavy Plasma Cannon Ballistic Gun Enhanced Autogun Ballistic Cannon Linear Accelerator Launcher Improved Proton Missile Launcher Impact Weapon Great Maul Build | -11 -10 -10 -10 -9 -8 -7 -7 -7 -7 -6 -6 -6 -6 -6 -5 -5 -5 -5 -5 -5 -4 -3 -2 -1 ------- Run | Yrd Mat Min Exi Min Mat Fac Low Low Dat Pro Fac Low Low Zio Pro Fac Ext Cet Arc Hub Fac Res Res Acc Slots Evolved 18 | . . . . . 4 2 . . . . 2 . . . . 2 . . . . 2 2 2 2 Power 2 | . . . . . . 1 . . . . . . . . . . . . . . . . 1 . Propulsion 4 | . . . . . 1 . . . . . 1 . . . . . . . . . 1 . . 1 Utility 10 | . . . . . 2 1 . . . . 1 . . . . 2 . . . . 1 2 1 . Weapon 2 | . . . . . 1 . . . . . . . . . . . . . . . . . . 1 Parts Attached 324 | 7 5 6 2 . 26 25 6 9 . 21 51 6 4 2 8 14 29 5 . 24 6 11 16 41 Power 28 | . 1 2 . . 3 3 . . . 1 2 . 1 . . 1 6 . . 4 . 1 1 2 Engine 9 | . 1 2 . . 1 3 . . . 1 . . 1 . . . . . . . . . . . Core 12 | . . . . . 2 . . . . . 2 . . . . 1 5 . . 2 . . . . Reactor 7 | . . . . . . . . . . . . . . . . . 1 . . 2 . 1 1 2 Propulsion 40 | 2 . 2 . . 9 6 . . . . 2 . . . . 2 8 2 . 4 1 1 . 1 Treads 36 | . . 2 . . 7 6 . . . . 2 . . . . 2 8 2 . 4 1 1 . 1 Leg 4 | 2 . . . . 2 . . . . . . . . . . . . . . . . . . . Wheel . | . . . . . . . . . . . . . . . . . . . . . . . . . Hover . | . . . . . . . . . . . . . . . . . . . . . . . . . Flight . | . . . . . . . . . . . . . . . . . . . . . . . . . Utility 157 | 2 1 . 1 . 5 11 4 7 . 12 37 6 3 1 6 4 4 1 . 6 3 8 10 25 Device 124 | 1 . . . . 3 7 4 7 . 12 32 6 3 1 6 1 . . . 3 1 6 9 22 Storage 8 | 1 1 . . . . 2 . . . . 3 . . . . . . . . . . 1 . . Processor 8 | . . . . . . . . . . . . . . . . 1 2 . . . 2 1 1 1 Hackware 1 | . . . . . . . . . . . . . . . . . . . . . . . . 1 Protection 16 | . . . 1 . 2 2 . . . . 2 . . . . 2 2 1 . 3 . . . 1 Artifact . | . . . . . . . . . . . . . . . . . . . . . . . . . Weapon 99 | 3 3 2 1 . 9 5 2 2 . 8 10 . . 1 2 7 11 2 . 10 2 1 5 13 Energy Gun 43 | 3 2 1 1 . 4 2 1 1 . 4 5 . . . 1 3 4 1 . 1 . 1 2 6 Energy Cannon 7 | . . . . . 1 . . . . . . . . 1 . 2 1 1 . 1 . . . . Ballistic Gun 30 | . 1 . . . 3 1 . . . 1 1 . . . . 2 5 . . 5 2 . 3 6 Ballistic Cannon 4 | . . . . . . . . . . . 3 . . . . . . . . . . . . 1 Launcher 13 | . . 1 . . . 1 1 1 . 3 1 . . . 1 . 1 . . 3 . . . . Special Weapon . | . . . . . . . . . . . . . . . . . . . . . . . . . Impact Weapon 2 | . . . . . 1 1 . . . . . . . . . . . . . . . . . . Slashing Weapon . | . . . . . . . . . . . . . . . . . . . . . . . . . Piercing Weapon . | . . . . . . . . . . . . . . . . . . . . . . . . . Special Melee Weapon . | . . . . . . . . . . . . . . . . . . . . . . . . . Unidentified Prototypes 10 | . 1 . . . 5 . . . . . . . . . . . . 3 . . 1 . . . Corrupted Parts 4 | . . . . . . . . . . 1 . . . . . . . . . 3 . . . . System Corruption 29 | . . . . . . . . . . 10 . . . . . . . . . 19 . . . . Parts Lost 18 | . . 1 . . . 1 . . . . . . . . . 3 2 . . 6 . . 1 4 Power 4 | . . . . . . . . . . . . . . . . 1 . . . 1 . . . 2 Propulsion 3 | . . 1 . . . . . . . . . . . . . . 1 . . 1 . . . . Utility 10 | . . . . . . 1 . . . . . . . . . 2 1 . . 4 . . 1 1 Weapon 1 | . . . . . . . . . . . . . . . . . . . . . . . . 1 Highest Loss Streak 4 | . . 1 . . . 1 . . . . . . . . . 1 1 . . 3 . . 1 4 To Critical Strikes . | . . . . . . . . . . . . . . . . . . . . . . . . . Average Slot Usage (%) 96 | . 93 99 100 100 98 99 100 100 100 100 99 100 100 100 100 96 95 94 94 91 83 88 91 87 Engine 5 | . 8 14 14 14 7 15 15 15 15 15 4 . 3 6 6 5 . . . . . . . . Core 3 | . . . . . 1 . . . . . 7 13 8 6 6 5 6 11 11 10 5 1 . . Reactor 2 | . . . . . . . . . . . . . . . . . 3 . . . 5 6 13 12 Treads 20 | . . 22 28 28 24 23 23 23 23 23 26 26 26 26 26 19 18 17 17 15 9 12 13 12 Leg 1 | . 28 5 . . 2 . . . . . . . . . . . . . . . . . . . Device 23 | . 14 14 14 . 17 22 23 23 23 23 26 26 26 26 26 23 23 23 23 22 26 30 30 27 Storage 6 | . 14 14 14 14 9 7 7 7 7 7 6 6 6 6 6 5 5 5 5 5 5 4 4 4 Processor 3 | . . . . . . . . . . . . . . . . 5 6 11 11 9 6 10 13 8 Protection 5 | . . . . 14 8 6 7 7 7 7 5 6 6 6 6 10 9 5 5 6 8 4 4 4 Energy Gun 8 | . 24 13 14 14 15 5 6 6 7 7 7 13 13 9 5 6 10 10 5 4 . . 2 2 Energy Cannon 1 | . . . . . . . . . . . . . . 2 6 3 . . 5 4 5 3 . . Ballistic Gun 9 | . 3 14 14 14 10 15 15 15 15 14 11 6 6 6 6 5 5 5 5 6 10 9 10 12 Peak Build Rating 188 | 6 12 12 12 13 34 51 51 51 49 51 66 66 65 65 66 83 86 103 100 108 115 146 164 188 Average Rating 72 | 4 8 11 11 12 28 43 49 49 49 49 58 63 62 62 62 77 83 95 100 101 114 136 159 178 On Entrance 62 | . 6 12 12 12 13 34 49 49 49 49 51 66 66 62 65 62 83 82 100 100 108 114 146 163 Naked Turns . | . . . . . . . . . . . . . . . . . . . . . . . . . Heaviest Build 192 | 9 30 33 33 33 52 75 71 75 71 80 143 139 142 148 148 150 145 146 146 168 171 171 184 192 Greatest Support 230 | 20 20 40 40 40 63 63 60 60 60 60 80 80 80 80 80 113 116 123 123 160 160 190 190 230 Greatest Overweight (x) 2 | 2 1 1 . . 1 1 1 1 1 1 1 1 1 1 1 1 1 1 1 1 1 1 . . Average Overweight (x) . | . . . . . . . 1 1 1 1 . 1 1 1 1 1 1 1 1 . . . . . Largest Inventory Capacity 25 | 8 15 15 15 15 15 25 15 15 15 15 25 25 25 25 25 25 25 25 25 25 25 25 25 25 Average Capacity 20 | 7 12 15 15 15 15 15 15 15 15 15 18 25 25 25 25 25 25 25 25 25 25 25 25 25 Most Carried 25 | 6 15 15 15 15 15 15 15 15 15 15 25 25 25 25 25 25 25 25 25 25 25 25 25 25 Average Carried 20 | 4 9 14 14 15 14 14 15 15 15 15 16 25 24 24 25 24 24 24 25 23 22 24 24 22 Final Capacity 25 | 8 15 15 15 15 15 15 15 15 15 15 25 25 25 25 25 25 25 25 25 25 25 25 25 25 Final Carried 25 | 6 15 15 15 15 15 15 15 15 15 15 25 25 25 25 25 25 25 25 25 20 25 25 24 21 Class Distribution -------------------- 37% | Scavenger-Tank 27% | Tank 14% | Mutant 9% | Scavenger-Gunner 7% | Infiltrator-Skirmisher Dominant Class ---------------- Mutant | -10/Materials Mutant | -10/Mines Mutant | -10/Exiles Mutant | -9/Mines Tank | -8/Materials Tank | -7/Factory Scavenger-Tank | -7/Lower Caves Scavenger-Tank | -7/Lower Caves Scavenger-Tank | -7/Data Miner Scavenger-Tank | -6/Proximity Caves Infiltrator-Skirmisher | -6/Factory Tank | -6/Lower Caves Tank | -6/Lower Caves Tank | -6/Zion Tank | -5/Proximity Caves Tank | -5/Factory Scavenger-Tank | -5/Extension Scavenger-Tank | -5/Cetus Scavenger-Tank | -5/Archives Scavenger-Tank | -5/Hub_04(d) Scavenger-Tank | -4/Factory Scavenger-Tank | -3/Research Scavenger-Tank | -2/Research Scavenger-Gunner | -1/Access Resources | -11 -10 -10 -10 -9 -8 -7 -7 -7 -7 -6 -6 -6 -6 -6 -5 -5 -5 -5 -5 -5 -4 -3 -2 -1 ----------- Run | Yrd Mat Min Exi Min Mat Fac Low Low Dat Pro Fac Low Low Zio Pro Fac Ext Cet Arc Hub Fac Res Res Acc Matter Collected 9155 | 267 62 127 . 44 466 853 214 185 . 389 1097 139 207 97 100 342 1114 87 . 652 160 175 514 1864 Remotely 2065 | . . . . . . . . . . 87 . . . . . . . . . . . . 287 1691 Salvage Created 16852 | 103 160 171 . 104 1334 1335 295 227 . 822 1188 209 158 . 331 1606 2704 . . 1932 160 244 1025 2744 Parts 819 | 8 17 5 . 4 93 69 8 21 . 40 61 8 11 . 17 59 108 . . 91 9 8 50 132 Haulers Intercepted 6 | . . . . . 4 1 . . . . . . . . . . . . . 1 . . . . Recyclers Shooed 8 | . . . . . 3 1 . . . . . . . . . 2 1 . . . . . 1 . Parts Field Recycled . | . . . . . . . . . . . . . . . . . . . . . . . . . Retrieved Matter . | . . . . . . . . . . . . . . . . . . . . . . . . . Parts Self-Destructed 100 | . . . . . . . 1 21 . 37 . 8 11 2 20 . . . . . . . . . Prevented 23 | . . . . . . . 5 . . 13 . . . . 5 . . . . . . . . . Kills | -11 -10 -10 -10 -9 -8 -7 -7 -7 -7 -6 -6 -6 -6 -6 -5 -5 -5 -5 -5 -5 -4 -3 -2 -1 ------- Run | Yrd Mat Min Exi Min Mat Fac Low Low Dat Pro Fac Low Low Zio Pro Fac Ext Cet Arc Hub Fac Res Res Acc Combat Hostiles Destroyed 254 | . 7 8 . 2 24 23 5 9 . 14 23 5 3 . 6 18 34 . . 23 3 3 12 32 Guns 178 | . 7 6 . 2 22 16 1 5 . 3 19 3 2 . 3 10 28 . . 8 2 2 12 27 Cannons 16 | . . . . . . . . . . . . . . . 1 3 . . . 6 1 . . 5 AOE 39 | . . 2 . . 2 7 3 4 . 10 3 . . . . . 5 . . 3 . . . . Classes Destroyed 19 | 2 4 2 . . 4 3 . . . 2 1 . . . . . 1 . . . . . . . Worker 16 | . . 1 . . 5 1 . . . . 1 . . . . 2 2 . . 2 . . . 2 Builder 13 | . . . . . 1 4 . . . . . . . . . 1 4 . . 2 . . . 1 Tunneler 2 | 2 . . . . . . . . . . . . . . . . . . . . . . . . Hauler 6 | . . . . . 4 1 . . . . . . . . . . . . . 1 . . . . Recycler 16 | 1 . 1 . . 2 1 . . . . 2 . . . . 2 4 . . 1 . . . 2 Mechanic 2 | . . . . . 1 1 . . . . . . . . . . . . . . . . . . Operator 4 | . 1 . . . . . . . . . . . . . . . . . . 2 . . . 1 Watcher 20 | . 1 . . . 3 2 . . . . 3 . . . . 4 1 . . . . . 4 2 Swarmer 52 | . 6 . . . 10 . . 7 . 3 12 3 . . 3 . 8 . . . . . . . Grunt 91 | . 1 2 . 2 10 16 4 . . 6 . . . . 1 11 11 . . 13 . 2 1 11 Brawler 5 | . . . . . . . . . . 2 . . . . 1 . . . . 1 . . . 1 Duelist 5 | . . . . . . 1 . . . 1 . . . . . . 1 . . 2 . . . . Protector 3 | . . . . . . . . . . . . . . . . . 1 . . 2 . . . . Sentry 34 | . . . . . 4 4 . . . 1 5 . . . . 3 10 . . . . 1 3 3 Specialist 1 | . . . . . . . . . . . 1 . . . . . . . . . . . . . Hunter 20 | . . . . . . 1 1 1 . . . 1 2 . 1 2 2 . . 2 . . . 7 Programmer 33 | . . . . . . 1 . 1 . . 5 . 1 . . 2 . . . 2 3 . 8 10 Behemoth 4 | . . . . . . . . . . 1 . 1 . . . . 1 . . 1 . . . . Assembled 6 | . . 6 . . . . . . . . . . . . . . . . . . . . . . Thug 1 | . . . . . . . . . . . . . . . 1 . . . . . . . . . Best Kill Streak 13 | 3 3 3 . 2 8 13 4 4 . 8 4 3 2 . 3 7 10 . . 11 1 2 4 11 Combat Bots Only 8 | . 3 3 . 2 6 8 4 4 . 8 4 3 2 . 3 3 6 . . 8 1 2 4 6 Max Kills in Single Turn 6 | 1 2 2 . 1 4 3 1 3 . 6 2 2 1 . 2 3 2 . . 3 1 1 1 2 Gunslinging 1 | . 1 . . . . . . 1 . . . 1 . . . . . . . . . . . . Exploded 6 | . . 1 . . 2 3 1 3 . 6 2 . . . . . 2 . . 1 . . . . Melee . | . . . . . . . . . . . . . . . . . . . . . . . . . Uniques/NPCs Destroyed . | . . . . . . . . . . . . . . . . . . . . . . . . . Combat | -11 -10 -10 -10 -9 -8 -7 -7 -7 -7 -6 -6 -6 -6 -6 -5 -5 -5 -5 -5 -5 -4 -3 -2 -1 -------- Run | Yrd Mat Min Exi Min Mat Fac Low Low Dat Pro Fac Low Low Zio Pro Fac Ext Cet Arc Hub Fac Res Res Acc Hostile Shots Fired 1439 | . 11 38 . 10 76 219 15 34 . 70 196 39 42 . 13 105 137 . 3 181 7 . 51 192 Missed 419 | . 3 15 . 5 16 86 5 9 . 22 77 14 8 . 1 24 31 . 1 46 2 . 13 41 Damage Taken 12919 | . 63 479 . 73 720 1126 105 155 . 640 670 252 253 . 60 1175 1659 . 27 2633 98 46 434 2251 Core 1278 | . 23 135 . 46 64 108 12 26 . 58 34 36 42 . 6 74 110 . . 424 . . 23 57 Absorbed by Shields 4974 | . . . . . 112 167 40 72 . 152 354 114 168 . 66 444 662 . 12 672 . 34 453 1452 Reduced by Siege Mode 357 | . . . . . . . . . . . . . . . . . 69 . . 3 . . 25 260 Redirected to Shielding 104 | . . . . . . . . . . . . . . . . 25 79 . . . . . . . Ignored by Resistances 1325 | . . . . . 46 28 15 97 . 199 286 145 179 . 61 100 . . . 169 . . . . Regen/Repaired (Parts) 231 | . . . . . . . . . . . . . . 231 . . . . . . . . . . Core Remaining (%) 79 | 100 . . . 18 88 . . . . 70 . . . . 86 . . . . 39 100 100 98 96 Volleys Fired 751 | 6 15 16 . 8 73 73 9 10 . 27 77 12 13 . 9 69 96 . . 73 9 7 59 90 Largest 4 | 2 2 2 . 2 3 3 3 3 . 3 3 3 3 . 3 3 3 . . 3 3 3 3 4 Hottest 225 | 90 90 88 . 73 139 111 111 111 . 147 166 166 166 . 170 189 195 . . 204 160 160 225 225 Shots Fired 2014 | 12 30 29 . 16 213 207 15 24 . 59 213 36 40 . 19 185 257 . . 178 25 21 129 306 Gun 1784 | 12 30 26 . 16 213 201 9 21 . 48 204 36 40 . 10 137 250 . . 114 16 14 129 258 Cannon 173 | . . . . . . . . . . . 7 . . . 5 48 1 . . 48 9 7 . 48 Launcher 57 | . . 3 . . . 6 6 3 . 11 2 . . . 4 . 6 . . 16 . . . . Special . | . . . . . . . . . . . . . . . . . . . . . . . . . Kinetic 1085 | . 3 13 . 8 80 151 6 14 . 27 134 11 13 . 5 57 87 . . 73 16 14 99 274 Thermal 872 | 12 27 13 . 8 133 50 3 7 . 21 77 25 27 . 10 128 164 . . 89 9 7 30 32 Explosive 16 | . . 3 . . . 6 . 3 . 2 2 . . . . . . . . . . . . . Electromagnetic 41 | . . . . . . . 6 . . 9 . . . . 4 . 6 . . 16 . . . . Robot Hit Streak 50 | 8 4 8 . 9 11 15 3 6 . 9 23 6 4 . 4 27 50 . . 19 12 9 27 16 Robot Miss Streak 12 | 1 2 4 . 1 6 4 1 1 . 12 5 2 2 . 2 3 4 . . 3 2 3 2 3 Penetration Max 2 | . . . . . . . . . . . 1 . . . 1 1 2 . . 1 1 . 1 1 Secondary Targets 21 | . 2 . . 1 1 3 . 1 . . 2 1 1 . . 2 5 . . . . . 2 . Max Gunslinging Chain 1 | . 1 . . 1 1 1 . 1 . . 1 1 1 . . 1 1 . . . . . 1 . Shots Hit Robots 1290 | 10 18 21 . 14 125 136 7 12 . 33 122 23 23 . 6 125 175 . . 127 15 14 87 197 Core Hits 671 | 4 15 28 . 5 63 72 8 13 . 29 53 9 6 . 9 48 92 . . 77 4 5 35 96 Critical Kills 32 | . . . . . . . . . . . . . . . . 3 2 . . 1 1 2 6 17 Critical Parts Destroyed 37 | . . . . . . . . . . . . . . . . 1 3 . . 2 2 1 14 14 Critical Strikes 107 | 1 2 . . 1 4 2 . . . . 8 3 2 . . 12 9 . . 3 3 3 20 34 Burn 35 | 1 2 . . 1 4 2 . . . . 8 3 2 . . 8 4 . . . . . . . Meltdown 1 | . . . . . . . . . . . . . . . . . . . . . . 1 . . Destroy 69 | . . . . . . . . . . . . . . . . 4 5 . . 3 3 2 20 32 Blast 2 | . . . . . . . . . . . . . . . . . . . . . . . . 2 Melee Attacks 3 | . . . . . 1 2 . . . . . . . . . . . . . . . . . . Impact 3 | . . . . . 1 2 . . . . . . . . . . . . . . . . . . Slashing . | . . . . . . . . . . . . . . . . . . . . . . . . . Piercing . | . . . . . . . . . . . . . . . . . . . . . . . . . Sneak Attacks . | . . . . . . . . . . . . . . . . . . . . . . . . . Combat Hostiles . | . . . . . . . . . . . . . . . . . . . . . . . . . Follow-up Attacks . | . . . . . . . . . . . . . . . . . . . . . . . . . Damage Inflicted 37170 | 119 215 403 . 192 2732 3446 399 471 . 1620 2920 595 293 . 385 3158 5436 . . 5028 571 410 2813 5964 Guns 27858 | 119 205 283 . 192 2269 2501 94 223 . 635 2543 595 293 . 160 2350 4710 . . 2493 377 219 2791 4806 Cannons 3171 | . . . . . . . . . . . . . . . 27 787 . . . 999 194 191 . 973 Explosions 5823 | . . 120 . . 342 945 305 248 . 985 359 . . . 198 . 710 . . 1485 . . . 126 Melee . | . . . . . . . . . . . . . . . . . . . . . . . . . Ramming 318 | . 10 . . . 121 . . . . . 18 . . . . 21 16 . . 51 . . 22 59 Kinetic 18102 | . 31 128 . 91 830 1746 74 118 . 257 1400 199 86 . 72 870 1820 . . 1631 377 219 2671 5482 Thermal 13306 | 119 174 155 . 101 1439 755 20 105 . 589 1143 396 207 . 115 2267 3002 . . 1917 194 191 120 297 Explosive 2268 | . . 120 . . 342 945 . 248 . 128 359 . . . . . . . . . . . . 126 Electromagnetic 3176 | . . . . . . . 305 . . 646 . . . . 198 . 598 . . 1429 . . . . Impact . | . . . . . . . . . . . . . . . . . . . . . . . . . Slashing . | . . . . . . . . . . . . . . . . . . . . . . . . . Piercing . | . . . . . . . . . . . . . . . . . . . . . . . . . Highest Corruption 24 | . . . . . . . . . . 10 4 4 4 4 . 3 4 4 4 24 . . 8 3 Average Corruption 3 | . . . . . . . . . . 10 1 4 4 4 . 2 3 4 4 6 . . 5 1 Corruption Purged . | . . . . . . . . . . . . . . . . . . . . . . . . . Corruption Blocked . | . . . . . . . . . . . . . . . . . . . . . . . . . Effects 219 | . . . . . . . . . . 10 33 9 20 . . 15 52 12 2 43 . . 19 4 Message Errors 44 | . . . . . . . . . . 2 9 3 4 . . 3 8 4 . 5 . . 6 . Matter Fused 51 | . . . . . . . . . . 1 4 2 6 . . 1 19 3 . 10 . . 5 . Heat Flow Errors 33 | . . . . . . . . . . 1 8 . 3 . . 3 8 2 1 7 . . . . Energy Discharges 26 | . . . . . . . . . . 2 3 . 2 . . 2 3 1 1 11 . . . 1 Parts Rejected 1 | . . . . . . . . . . . . . . . . . . . . . . . . 1 Parts Fused 2 | . . . . . . . . . . . . . . . . . 2 . . . . . . . Data Loss (minor) 27 | . . . . . . . . . . 3 2 1 3 . . 2 4 1 . 6 . . 5 . Data Loss (major) 10 | . . . . . . . . . . 1 1 1 1 . . 1 1 1 . 1 . . 1 1 Misfires 9 | . . . . . . . . . . . 3 1 1 . . 2 2 . . . . . . . Alerts 5 | . . . . . . . . . . . 1 . . . . 1 . . . 2 . . 1 . Weapon Failures 11 | . . . . . . . . . . . 2 1 . . . . 5 . . 1 . . 1 1 Overload Shots 38 | . . . . . . . . . . . . . . . . . . . . . . . 21 17 Effects 1 | . . . . . . . . . . . . . . . . . . . . . . . . 1 Energy Bleed 1 | . . . . . . . . . . . . . . . . . . . . . . . . 1 Overflow Damage 115 | . . . . . . . . . . . 6 . . . . 38 6 . . 42 18 . . 5 Projectiles 90 | . . . . . . . . . . . . . . . . 38 . . . 29 18 . . 5 Explosions 25 | . . . . . . . . . . . 6 . . . . . 6 . . 13 . . . . Melee . | . . . . . . . . . . . . . . . . . . . . . . . . . Knockbacks 13 | . . . . . 3 . . . . . 1 . . . . . . . . . . . . 9 Impact 5 | . . . . . 3 . . . . . 1 . . . . . . . . . . . . 1 Kinetic 8 | . . . . . . . . . . . . . . . . . . . . . . . . 8 Secondary . | . . . . . . . . . . . . . . . . . . . . . . . . . Self-Inflicted Damage 440 | . . 22 . . 150 . . . . . . . . . . 87 . . . 98 . . . 83 Shots 10 | . . 1 . . 2 . . . . . . . . . . 1 . . . 5 . . . 1 Rammed 27 | . . . . . 11 . . . . . 2 . . . . 1 3 . . 7 . . 1 2 Targets Rammed 29 | . 1 . . . 12 . . . . . 2 . . . . 1 3 . . 7 . . 1 2 Kicked 1 | . 1 . . . . . . . . . . . . . . . . . . . . . . . Crushed 1 | . . . . . 1 . . . . . . . . . . . . . . . . . . . Highest Temperature 900 | 60 90 198 . 258 220 392 11 12 . 242 139 3 129 . . 115 231 . 40 900 . . 404 331 Average Temperature 105 | 26 31 80 . 141 62 99 6 4 . 37 16 2 75 . . 46 106 . 40 251 . . 148 106 Received Heat Transfer 2494 | . 6 36 . 42 240 440 45 . . 142 36 20 . . . 376 348 . 12 683 . . 12 56 Effects 36 | . . . . . . 6 . . . . . . . . . . . . . 27 . . 1 2 Shutdowns 7 | . . . . . . 2 . . . . . . . . . . . . . 5 . . . . Energy Bleed 4 | . . . . . . . . . . . . . . . . . . . . 2 . . 1 1 Interference 8 | . . . . . . 3 . . . . . . . . . . . . . 5 . . . . Matter Decay 2 | . . . . . . . . . . . . . . . . . . . . 1 . . . 1 Short Circuit 1 | . . . . . . . . . . . . . . . . . . . . 1 . . . . Damage (minor) 2 | . . . . . . 1 . . . . . . . . . . . . . 1 . . . . Damage (major) 10 | . . . . . . . . . . . . . . . . . . . . 10 . . . . Damage (core) 2 | . . . . . . . . . . . . . . . . . . . . 2 . . . . Siege Activations 33 | . . . . . . . . . . . . . . . . . 12 . . 1 . . 5 15 Total Turns 288 | . . . . . . . . . . . . . . . . . 78 . . 5 . . 46 159 Longest Duration 42 | . . . . . . . . . . . . . . . . . 14 . . 5 . . 24 42 Robots Corrupted 11 | . . . . . . . 1 . . 1 . . . . 2 . 1 . . 6 . . . . Combat Hostiles 11 | . . . . . . . 1 . . 1 . . . . 2 . 1 . . 6 . . . . Parts Fried 24 | . . . . . . . 1 . . 3 . . . . 1 . 2 . . 17 . . . . Impact Corruptions 1 | . . . . . . . . . . . . . . . . . . . . . . . . 1 Robots Melted 10 | . . . . . . . . . . . 1 2 1 . . 5 . . . . . 1 . . Combat Hostiles 10 | . . . . . . . . . . . 1 2 1 . . 5 . . . . . 1 . . Parts Melted 64 | . . 1 . . 9 2 . . . 1 13 1 2 . . 16 14 . . 4 . 1 . . Heat Transferred 26160 | 384 543 210 . 370 3293 1517 37 185 . 816 2696 1031 572 . 237 4889 5571 . . 2519 250 300 222 518 Parts Sabotaged . | . . . . . . . . . . . . . . . . . . . . . . . . . Parts Stolen . | . . . . . . . . . . . . . . . . . . . . . . . . . Parts Stripped . | . . . . . . . . . . . . . . . . . . . . . . . . . Power Chain Reactions 10 | . . . . . . . 1 . . 1 . . . . . . 4 . . 4 . . . . Alert | -11 -10 -10 -10 -9 -8 -7 -7 -7 -7 -6 -6 -6 -6 -6 -5 -5 -5 -5 -5 -5 -4 -3 -2 -1 ------- Run | Yrd Mat Min Exi Min Mat Fac Low Low Dat Pro Fac Low Low Zio Pro Fac Ext Cet Arc Hub Fac Res Res Acc Peak Influence 1331 | 15 204 80 . 65 428 527 . . . . 407 . . . . 381 463 303 386 1331 782 320 310 707 Initial 651 | . 9 25 . . 25 125 . . . . 161 . . . . . 133 188 71 135 651 305 . 118 Average 244 | 4 73 19 . 2 251 367 . . . . 271 . . . . 153 229 244 200 797 658 131 125 223 Maximum Alert Level 4 | . 1 . . . 2 2 . . . . 2 . . . . 1 2 1 1 4 3 1 1 3 Low Security (%) 48 | 100 95 100 . 100 19 18 . . . . 8 . . . . 67 38 39 55 5 . 73 87 66 Level 1 36 | . 4 . . . 67 32 . . . . 91 . . . . 32 58 60 44 1 . 26 12 11 Level 2 11 | . . . . . 13 49 . . . . . . . . . . 3 . . 40 81 . . 20 Level 3 2 | . . . . . . . . . . . . . . . . . . . . 33 18 . . . Level 4 1 | . . . . . . . . . . . . . . . . . . . . 19 . . . . Level 5 . | . . . . . . . . . . . . . . . . . . . . . . . . . High Security . | . . . . . . . . . . . . . . . . . . . . . . . . . Max Security . | . . . . . . . . . . . . . . . . . . . . . . . . . Squads Dispatched 41 | . 1 . . . 3 3 . . . 1 6 . . . . 2 3 . . 8 3 4 3 4 Investigation 3 | . 1 . . . 1 . . . . . . . . . . . . . . . . 1 . . Extermination 16 | . . . . . . 1 . . . . 4 . . . . 1 . . . 2 2 . 2 4 Reinforcement 15 | . . . . . 1 2 . . . . 2 . . . . 1 2 . . 2 1 3 1 . Assault 6 | . . . . . . . . . . 1 . . . . . . 1 . . 4 . . . . Garrison 1 | . . . . . 1 . . . . . . . . . . . . . . . . . . . Intercept . | . . . . . . . . . . . . . . . . . . . . . . . . . Searches Triggered . | . . . . . . . . . . . . . . . . . . . . . . . . . Construction Impeded 2 | . . . . . . 1 . . . . . . . . . . 1 . . . . . . . Haulers Reinforced 2 | . . . . . . . . . . . . . . . . . . . . 1 . 1 . . Active Scanning Responses . | . . . . . . . . . . . . . . . . . . . . . . . . . Cargo Convoy Interrupts . | . . . . . . . . . . . . . . . . . . . . . . . . . Stealth | -11 -10 -10 -10 -9 -8 -7 -7 -7 -7 -6 -6 -6 -6 -6 -5 -5 -5 -5 -5 -5 -4 -3 -2 -1 --------- Run | Yrd Mat Min Exi Min Mat Fac Low Low Dat Pro Fac Low Low Zio Pro Fac Ext Cet Arc Hub Fac Res Res Acc Distress Signals 22 | . 1 . . . 3 4 . . . . 1 . . . . 1 2 1 . 3 . 5 1 . Communications Jammed 204 | . . . . . . . . . . . 4 . . . . 45 10 . . 119 . . 21 5 Distress Signals 202 | . . . . . . . . . . . 3 . . . . 44 10 . . 119 . . 21 5 Times Spotted 384 | . 12 22 . 2 36 29 5 9 . 20 27 6 3 . 8 22 45 4 9 51 5 6 26 37 Peak Tracking Total 16 | . 4 16 . 2 7 10 4 4 . 14 4 4 2 . 4 3 6 4 9 6 2 2 7 5 Tactical Retreats 15 | . . . . . 3 1 . . . 2 2 1 . . . . 3 . . 3 . . . . Traps | -11 -10 -10 -10 -9 -8 -7 -7 -7 -7 -6 -6 -6 -6 -6 -5 -5 -5 -5 -5 -5 -4 -3 -2 -1 ------- Run | Yrd Mat Min Exi Min Mat Fac Low Low Dat Pro Fac Low Low Zio Pro Fac Ext Cet Arc Hub Fac Res Res Acc Traps Triggered 14 | . 1 . . . . . . . . . 3 . . . . 1 4 . . 3 . . . 2 Indirectly . | . . . . . . . . . . . . . . . . . . . . . . . . . Trap Hack Attempts . | . . . . . . . . . . . . . . . . . . . . . . . . . Triggered . | . . . . . . . . . . . . . . . . . . . . . . . . . Disarmed . | . . . . . . . . . . . . . . . . . . . . . . . . . Reprogrammed . | . . . . . . . . . . . . . . . . . . . . . . . . . Reused . | . . . . . . . . . . . . . . . . . . . . . . . . . Traps Extracted . | . . . . . . . . . . . . . . . . . . . . . . . . . Installed . | . . . . . . . . . . . . . . . . . . . . . . . . . Triggered 1 | . . . . . . . . . . . . . . . 1 . . . . . . . . . Machines | -11 -10 -10 -10 -9 -8 -7 -7 -7 -7 -6 -6 -6 -6 -6 -5 -5 -5 -5 -5 -5 -4 -3 -2 -1 ---------- Run | Yrd Mat Min Exi Min Mat Fac Low Low Dat Pro Fac Low Low Zio Pro Fac Ext Cet Arc Hub Fac Res Res Acc Machines Disabled 25 | . . . . 1 3 . . . . . . . . . . 1 . . 1 15 1 . 1 2 Max in Single Turn 3 | . . . . 1 3 . . . . . . . . . . 1 . . . 1 1 . 1 1 Garrison Access 6 | . . . . . 1 . . . . . . . . . . 1 . . . 2 . 1 1 . Machines Repaired . | . . . . . . . . . . . . . . . . . . . . . . . . . Machines Dismantled . | . . . . . . . . . . . . . . . . . . . . . . . . . Machines Sabotaged . | . . . . . . . . . . . . . . . . . . . . . . . . . Overloaded Fab Kills . | . . . . . . . . . . . . . . . . . . . . . . . . . Hacking | -11 -10 -10 -10 -9 -8 -7 -7 -7 -7 -6 -6 -6 -6 -6 -5 -5 -5 -5 -5 -5 -4 -3 -2 -1 --------- Run | Yrd Mat Min Exi Min Mat Fac Low Low Dat Pro Fac Low Low Zio Pro Fac Ext Cet Arc Hub Fac Res Res Acc Machines Accessed 74 | . 8 . 1 . 12 2 1 . 4 . 8 . . 1 . 5 6 . . 7 4 6 5 4 Terminals 44 | . 7 . . . 8 1 . . . . 5 . . . . 1 5 . . 5 2 2 4 4 Fabricators 5 | . . . . . . . . . . . 1 . . . . 2 . . . . . 2 . . Repair Stations 2 | . . . . . . . . . . . 1 . . . . . . . . . . 1 . . Recycling Units 7 | . 1 . . . 2 . . . . . . . . . . 1 1 . . . 2 . . . Scanalyzers 3 | . . . . . 1 1 . . . . 1 . . . . . . . . . . . . . Garrison Access 6 | . . . . . 1 . . . . . . . . . . 1 . . . 2 . 1 1 . Total Hacks 190 | . 24 . 1 . 40 4 1 . 30 . 20 . . 5 . 7 13 . . 16 8 9 8 4 Successful 108 | . 12 . 1 . 20 3 1 . 30 . 10 . . 5 . 6 5 . . 5 3 2 3 2 Failed 82 | . 12 . . . 20 1 . . . . 10 . . . . 1 8 . . 11 5 7 5 2 Catastrophic 19 | . 1 . . . 4 . . . . . 1 . . . . 1 2 . . 2 3 1 2 2 Database Lockouts . | . . . . . . . . . . . . . . . . . . . . . . . . . Manual 71 | . 17 . 1 . 21 1 . . . . 9 . . . . 2 12 1 . 3 . . 3 1 Terminals 104 | . 21 . . . 26 3 . . . . 12 . . . . 1 12 . . 12 3 4 6 4 Fabricators 9 | . . . . . . . . . . . 2 . . . . 4 . . . . . 3 . . Repair Stations 4 | . . . . . . . . . . . 3 . . . . . . . . . . 1 . . Recycling Units 16 | . 3 . . . 6 . . . . . . . . . . 1 1 . . . 5 . . . Scanalyzers 10 | . . . . . 6 1 . . . . 3 . . . . . . . . . . . . . Garrison Access 10 | . . . . . 2 . . . . . . . . . . 1 . . . 4 . 1 2 . Terminal Hacks 63 | . 8 . 1 . 8 1 1 . 30 . 1 . . 5 . 1 1 . . 3 1 . 1 1 Record 11 | . . . . . . . . . 11 . . . . . . . . . . . . . . . Part Schematic 16 | . . . . . 1 . . . 10 . . . . 5 . . . . . . . . . . Robot Schematic 6 | . . . . . . . . . 6 . . . . . . . . . . . . . . . Robot Analysis 1 | . 1 . . . . . . . . . . . . . . . . . . . . . . . Prototype ID Bank 3 | . . . . . . . . . 3 . . . . . . . . . . . . . . . Open Door 2 | . . . . . . . 1 . . . . . . . . . . . . . . . . 1 Branch Access Points 5 | . 1 . . . 1 1 . . . . 1 . . . . 1 . . . . . . . . Emergency Access Points 1 | . . . . . . . . . . . . . . . . . . . . 1 . . . . Terminal Index 3 | . 1 . . . 1 . . . . . . . . . . . . . . . . . 1 . Unreport Threat 3 | . . . . . 2 . . . . . . . . . . . 1 . . . . . . . Locate Traps 7 | . 3 . . . 3 . . . . . . . . . . . . . . 1 . . . . Hauler Manifests 1 | . 1 . . . . . . . . . . . . . . . . . . . . . . . Zone Layout 3 | . 1 . . . . . . . . . . . . . . . . . . 1 1 . . . Derelict Proto ID Bank 1 | . . . 1 . . . . . . . . . . . . . . . . . . . . . Fabricator Hacks 4 | . . . . . . . . . . . 1 . . . . 2 . . . . . 1 . . Network Status 3 | . . . . . . . . . . . 1 . . . . 1 . . . . . 1 . . Build 1 | . . . . . . . . . . . . . . . . 1 . . . . . . . . Repair Station Hacks 1 | . . . . . . . . . . . 1 . . . . . . . . . . . . . Scan Component 1 | . . . . . . . . . . . 1 . . . . . . . . . . . . . Recycling Unit Hacks 6 | . 1 . . . 2 . . . . . . . . . . . 1 . . . 2 . . . Retrieve Components 6 | . 1 . . . 2 . . . . . . . . . . . 1 . . . 2 . . . Scanalyzer 8 | . . . . . 5 1 . . . . 2 . . . . . . . . . . . . . Insert Component 4 | . . . . . 2 1 . . . . 1 . . . . . . . . . . . . . Analyze 4 | . . . . . 3 . . . . . 1 . . . . . . . . . . . . . Garrison Access Hacks 5 | . . . . . 1 . . . . . . . . . . 1 . . . 1 . 1 1 . Seal Access 5 | . . . . . 1 . . . . . . . . . . 1 . . . 1 . 1 1 . Unauthorized Hacks 21 | . 3 . . . 4 1 . . . . 5 . . . . 2 3 . . 1 . . 1 1 Terminals 17 | . 3 . . . 3 1 . . . . 4 . . . . . 3 . . 1 . . 1 1 Botnet 15 | . 3 . . . 3 1 . . . . 2 . . . . . 3 . . 1 . . 1 1 Skim 2 | . . . . . . . . . . . 2 . . . . . . . . . . . . . Fabricators 3 | . . . . . . . . . . . 1 . . . . 2 . . . . . . . . Liberate 2 | . . . . . . . . . . . 1 . . . . 1 . . . . . . . . Fabnet 1 | . . . . . . . . . . . . . . . . 1 . . . . . . . . Repair Stations . | . . . . . . . . . . . . . . . . . . . . . . . . . Recycling Units 1 | . . . . . 1 . . . . . . . . . . . . . . . . . . . Mask 1 | . . . . . 1 . . . . . . . . . . . . . . . . . . . Scanalyzers . | . . . . . . . . . . . . . . . . . . . . . . . . . Garrison Access . | . . . . . . . . . . . . . . . . . . . . . . . . . Data Cores Recovered 2 | . 1 . . . . . . . . . . . . . . . . . . . . . . 1 Used . | . . . . . . . . . . . . . . . . . . . . . . . . . Hacking Detections 55 | . 7 . . . 11 1 . . . . 8 . . . . 3 4 . . 6 3 5 4 3 Full Trace Events 2 | . . . . . 2 . . . . . . . . . . . . . . . . . . . Feedback Events . | . . . . . . . . . . . . . . . . . . . . . . . . . Feedback Blocked . | . . . . . . . . . . . . . . . . . . . . . . . . . Robot Schematics Acquired 7 | . . . . . . . . . 6 . . . . 1 . . . . . . . . . . Robots Built . | . . . . . . . . . . . . . . . . . . . . . . . . . Authchips . | . . . . . . . . . . . . . . . . . . . . . . . . . Time . | . . . . . . . . . . . . . . . . . . . . . . . . . Total Robot Build Rating . | . . . . . . . . . . . . . . . . . . . . . . . . . Part Schematics Acquired 34 | . . . . . 3 . . . 10 . 1 . . 20 . . . . . . . . . . Parts Built 1 | . . . . . . . . . . . . . . . . 1 . . . . . . . . Authchips . | . . . . . . . . . . . . . . . . . . . . . . . . . Time 117 | . . . . . . . . . . . . . . . . 117 . . . . . . . . Total Part Build Rating 7 | . . . . . . . . . . . . . . . . 7 . . . . . . . . Parts Repaired . | . . . . . . . . . . . . . . . . . . . . . . . . . Time . | . . . . . . . . . . . . . . . . . . . . . . . . . Parts Recycled . | . . . . . . . . . . . . . . . . . . . . . . . . . Recycled Matter . | . . . . . . . . . . . . . . . . . . . . . . . . . Retrieved Matter . | . . . . . . . . . . . . . . . . . . . . . . . . . Retrieved Components 27 | . 9 . . . 12 . . . . . . . . . . . 3 . . . 3 . . . Parts Scanalyzed 3 | . . . . . 2 . . . . . 1 . . . . . . . . . . . . . Part Schematics Acquired 3 | . . . . . 2 . . . . . 1 . . . . . . . . . . . . . Parts Damaged . | . . . . . . . . . . . . . . . . . . . . . . . . . Bothacking | -11 -10 -10 -10 -9 -8 -7 -7 -7 -7 -6 -6 -6 -6 -6 -5 -5 -5 -5 -5 -5 -4 -3 -2 -1 ------------ Run | Yrd Mat Min Exi Min Mat Fac Low Low Dat Pro Fac Low Low Zio Pro Fac Ext Cet Arc Hub Fac Res Res Acc Used RIF Installer . | . . . . . . . . . . . . . . . . . . . . . . . . . Robots Hacked . | . . . . . . . . . . . . . . . . . . . . . . . . . Non-combat . | . . . . . . . . . . . . . . . . . . . . . . . . . Combat . | . . . . . . . . . . . . . . . . . . . . . . . . . Robot Hacks Applied . | . . . . . . . . . . . . . . . . . . . . . . . . . Relay Couplers Released 2 | . . . . . . . . . . . . . . . . 2 . . . . . . . . Machine Destruction 2 | . . . . . . . . . . . . . . . . 2 . . . . . . . . Fabnet Peak Effective % . | . . . . . . . . . . . . . . . . . . . . . . . . . Robots Rewired 10 | . . . . . . . . . . 2 . . . . . . 8 . . . . . . . Allies Hacked . | . . . . . . . . . . . . . . . . . . . . . . . . . Hacks Repelled . | . . . . . . . . . . . . . . . . . . . . . . . . . Allies | -11 -10 -10 -10 -9 -8 -7 -7 -7 -7 -6 -6 -6 -6 -6 -5 -5 -5 -5 -5 -5 -4 -3 -2 -1 -------- Run | Yrd Mat Min Exi Min Mat Fac Low Low Dat Pro Fac Low Low Zio Pro Fac Ext Cet Arc Hub Fac Res Res Acc Total Allies 49 | . . . . . . . . . . 2 12 . . 4 . 3 23 5 . . . . . . Largest Group 13 | . . . . . . . . . . 2 4 . . 4 4 3 10 13 10 6 . . . . Highest-Rated Group 855 | . . . . . . . . . . 49 107 . . 110 108 87 445 855 686 426 . . . . Highest-Rated Ally 159 | . . . . . . . . . . 29 31 . . 31 31 29 159 159 159 96 . . . . Total Orders 4 | . . . . . . . . . . . 4 . . . . . . . . . . . . . EXPLORE 2 | . . . . . . . . . . . 2 . . . . . . . . . . . . . RETURN 2 | . . . . . . . . . . . 2 . . . . . . . . . . . . . Ally Attacks 309 | . . . . . . . . . . 16 2 . . . 20 11 71 75 24 90 . . . . Total Damage 8537 | . . . . . . . . . . 294 20 . . . 339 170 1170 1871 1432 3241 . . . . Kills 50 | . . . . . . . . . . 4 . . . . 2 2 5 9 9 19 . . . . Allies Corrupted 1 | . . . . . . . . . . . . . . . . 1 . . . . . . . . Allies Melted . | . . . . . . . . . . . . . . . . . . . . . . . . . Intel | -11 -10 -10 -10 -9 -8 -7 -7 -7 -7 -6 -6 -6 -6 -6 -5 -5 -5 -5 -5 -5 -4 -3 -2 -1 ------- Run | Yrd Mat Min Exi Min Mat Fac Low Low Dat Pro Fac Low Low Zio Pro Fac Ext Cet Arc Hub Fac Res Res Acc Robot Analysis Total 1 | . 1 . . . . . . . . . . . . . . . . . . . . . . . Derelict Logs Recovered 7 | . . 1 . . . . 1 2 . 1 . 1 . . 1 . . . . . . . . . Drone Launches 2 | . . . . . . . . . . . 2 . . . . . . . . . . . . . Drone Recoveries . | . . . . . . . . . . . . . . . . . . . . . . . . . Exploration | -11 -10 -10 -10 -9 -8 -7 -7 -7 -7 -6 -6 -6 -6 -6 -5 -5 -5 -5 -5 -5 -4 -3 -2 -1 ------------- Run | Yrd Mat Min Exi Min Mat Fac Low Low Dat Pro Fac Low Low Zio Pro Fac Ext Cet Arc Hub Fac Res Res Acc Turns Passed 26942 | 98 931 1868 349 564 1356 1345 909 882 205 633 3019 431 904 2263 807 1301 2279 606 93 1363 511 1509 994 1722 Spaces Moved 10826 | 51 510 671 216 317 556 541 352 336 83 203 1287 154 342 904 308 360 711 171 39 459 223 835 444 753 Core 15 | 15 . . . . . . . . . . . . . . . . . . . . . . . . Treads 10100 | . . 506 216 317 556 541 352 336 83 203 1287 154 342 904 308 360 711 171 39 459 223 835 444 753 Legs 711 | 36 510 165 . . . . . . . . . . . . . . . . . . . . . . Wheels . | . . . . . . . . . . . . . . . . . . . . . . . . . Hover . | . . . . . . . . . . . . . . . . . . . . . . . . . Flight . | . . . . . . . . . . . . . . . . . . . . . . . . . Fastest Speed 50 | 50 120 160 160 160 160 163 250 250 250 250 170 250 250 250 250 250 242 242 243 160 160 155 155 166 Average Speed 204 | 119 156 167 160 160 173 198 250 250 250 250 195 250 250 250 250 253 247 242 243 236 200 171 155 166 Slowest Speed 256 | 150 190 190 160 160 240 250 250 250 250 250 250 250 250 250 250 256 253 243 243 245 240 240 155 166 Overloaded Moves . | . . . . . . . . . . . . . . . . . . . . . . . . . Propulsion Burnouts . | . . . . . . . . . . . . . . . . . . . . . . . . . Robots Hopped . | . . . . . . . . . . . . . . . . . . . . . . . . . Cave-ins Triggered . | . . . . . . . . . . . . . . . . . . . . . . . . . Exploration Rate (%) 50 | 5 90 97 61 67 59 16 64 52 70 52 40 41 53 80 52 11 87 59 71 61 7 33 16 26 Regions Visited 24 Branch Regions 15 Pre-discovered Areas 6 | . . 1 . . . . . 1 1 1 . . . 1 1 . . . . . . . . . Known Exits Taken 7 | . 1 . . . . 1 . . . . 1 . . . . 1 . . . 1 . 1 1 . Unknown Exits Taken 17 | 1 . 1 1 1 1 . 1 1 1 1 . 1 1 1 1 . 1 1 1 . 1 . . . Scrap Searched 16 | . . 2 . . . . 1 3 . 1 . 2 3 4 . . . . . . . . . . Spaces Dug 46 | . . . . . 1 2 . . . . 5 . . . . 5 1 . . 1 1 . 20 10 Terrain Destroyed 310 | . . 31 . . 59 31 1 9 . 14 12 . 1 . 1 30 15 . . 28 8 . 21 49 Melee 3 | . . . . . 1 2 . . . . . . . . . . . . . . . . . . Projectile 103 | . . . . . . . . . . . 5 . 1 . 1 8 14 . . 15 8 . 21 30 AOE 204 | . . 31 . . 58 29 1 9 . 14 7 . . . . 22 1 . . 13 . . . 19 Terrain Rammed . | . . . . . . . . . . . . . . . . . . . . . . . . . Walls Destroyed . | . . . . . . . . . . . . . . . . . . . . . . . . . Machines Disabled . | . . . . . . . . . . . . . . . . . . . . . . . . . Actions | -11 -10 -10 -10 -9 -8 -7 -7 -7 -7 -6 -6 -6 -6 -6 -5 -5 -5 -5 -5 -5 -4 -3 -2 -1 --------- Run | Yrd Mat Min Exi Min Mat Fac Low Low Dat Pro Fac Low Low Zio Pro Fac Ext Cet Arc Hub Fac Res Res Acc Total 14247 | 73 613 1387 219 359 782 712 367 361 82 281 1653 171 362 908 326 614 1048 367 38 584 267 911 680 1082 Wait 1912 | 4 62 686 . 29 82 40 1 7 . . 199 . . . . 162 71 170 . 14 22 16 157 190 Move 10801 | 50 509 670 215 316 555 540 351 335 82 202 1286 153 341 903 307 359 710 170 38 458 222 834 443 752 Hop . | . . . . . . . . . . . . . . . . . . . . . . . . . Pick Up 122 | 6 15 4 1 3 8 11 . . . . 17 . 2 1 1 4 9 8 . 4 4 18 2 4 Fast Attach 100 | 6 1 2 . . 21 13 . . . 1 10 . . 1 . 3 18 3 . 6 3 9 2 1 Attach 36 | . 1 1 . . 2 2 . . . . 4 . . . . 5 3 . . 6 1 . 3 8 Detach 8 | . . . . . . . . . . . 2 . . . . 2 . . . . 2 . 1 1 Swap 188 | 1 3 3 2 . 3 10 6 9 . 20 37 6 4 1 8 6 8 2 . 12 2 2 11 32 Drop 159 | . 6 5 1 3 25 21 . . . 1 15 . 2 2 1 3 26 14 . 4 2 25 1 2 Fire 751 | 6 15 16 . 8 73 73 9 10 . 27 77 12 13 . 9 69 96 . . 73 9 7 59 90 Melee 3 | . . . . . 1 2 . . . . . . . . . . . . . . . . . . Ram . | . . . . . . . . . . . . . . . . . . . . . . . . . Kick 1 | . 1 . . . . . . . . . . . . . . . . . . . . . . . Crush 28 | . . . . . 12 . . . . . 2 . . . . 1 3 . . 7 . . 1 2 Escape Stasis 10 | . . . . . . . . . . . 4 . . . . . 6 . . . . . . . Rewire 128 | . . . . . . . . . . 30 . . . . . . 98 . . . . . . . Trap . | . . . . . . . . . . . . . . . . . . . . . . . . . Miscellaneous . | . . . . . . . . . . . . . . . . . . . . . . . . . Route ------- -11/Scrapyard -10/Materials (discovered 4 exits: [*Mat x3] / *Min) -10/Mines (discovered 3 exits: [*Mat x2] / *Exi) -10/Exiles -9/Mines -8/Materials -7/Factory (discovered 3 exits: *Sto / *Low x2) -7/Lower Caves -7/Lower Caves -7/Data Miner -6/Proximity Caves -6/Factory (discovered 3 exits: *Fac / *Low x2) -6/Lower Caves -6/Lower Caves (discovered 2 exits: *Fac / *Zio) -6/Zion -5/Proximity Caves -5/Factory (discovered 5 exits: Fac / *Upp x2 / *Ext x2) -5/Extension (discovered 2 exits: *Fac / *Cet) -5/Cetus (discovered 2 exits: *Fac / [*Arc]) -5/Archives (discovered 2 exits: *Hub x2) -5/Hub_04(d) -4/Factory -3/Research (discovered 2 exits: *Res x2) -2/Research (discovered 2 exits: *Acc / *Tes) -1/Access To Epsilon Eridani History --------- Turn | Location | Event 18 | -11/Scrapyard | Discovered new exit (range 15) 99 | -11/Scrapyard | Entered Materials 309 | -10/Materials | Build established: Mutant 313 | -10/Materials | Discovered new exit (range 20) 373 | -10/Materials | Discovered new exit (range 14) 560 | -10/Materials | Identified exit to Mines 591 | -10/Materials | Discovered new exit (range 8) 768 | -10/Materials | Discovered new exit (range 12) 1030 | -10/Materials | Entered Mines 1089 | -10/Mines | Discovered new exit (range 11) 1161 | -10/Mines | Deemed a non-threat by the Exiles lab entrance 1163 | -10/Mines | Discovered new exit (range 5) 1197 | -10/Mines | Received a Rocket Launcher from a helpful Derelict 1199 | -10/Mines | Learned Materials trap positions 1278 | -10/Mines | Discovered new exit (range 12) 1333 | -10/Mines | Assembled infested the area 1382 | -10/Mines | Core integrity fell below 50% 2334 | -10/Mines | Learned location of Storage (-7) 2898 | -10/Mines | Entered Exiles 2935 | -10/Exiles | Met 8R-AWN 2964 | -10/Exiles | Met EX-HEX 3009 | -10/Exiles | Met EX-BIN 3034 | -10/Exiles | Aligned with FarCom system 3036 | -10/Exiles | Given EX-Vault access code 3076 | -10/Exiles | Opened EX-Vault 3088 | -10/Exiles | Found Skeleton Box 3122 | -10/Exiles | Warned to stay clear of 0b10 Research branches 3172 | -10/Exiles | Met EX-DEC 3226 | -10/Exiles | Discovered new exit (range 14) 3247 | -10/Exiles | Left Exiles lab with Skeleton Box 3247 | -10/Exiles | Entered Mines 3335 | -9/Mines | A weapon hastily lodged in a ceiling crevice suddenly fell to the ground 3713 | -9/Mines | Discovered new exit (range 12) 3785 | -9/Mines | Core integrity fell below 20% 3811 | -9/Mines | Entered Materials 3811 | -8/Materials | Evolved 4 slots: Propulsion x1, Utility x2, Weapon x1 3812 | -8/Materials | Loaded intel: 15 trap records 4053 | -8/Materials | Garrison activated, responded to threat 4202 | -8/Materials | Build established: Tank 4843 | -8/Materials | Build established: Scavenger-Tank 5060 | -8/Materials | Discovered new exit (range 16) 5167 | -8/Materials | Entered Factory 5167 | -7/Factory | Evolved 2 slots: Power x1, Utility x1 5202 | -7/Factory | Identified exit to Storage 5202 | -7/Factory | Identified exit to Lower Caves 5227 | -7/Factory | Build established: Tank 5454 | -7/Factory | Destroyed 8 combat bots 5989 | -7/Factory | Build established: Scavenger-Skirmisher 6512 | -7/Factory | Entered Lower Caves 6635 | -7/Lower Caves | Build established: Scavenger-Tank 6637 | -7/Lower Caves | Encountered a Warlord checkpoint 6996 | -7/Lower Caves | Spotted B-75 Beast 7321 | -7/Lower Caves | Discovered new exit (range 5) 7421 | -7/Lower Caves | Entered another Lower Caves area 8094 | -7/Lower Caves | Learned 4 Factory zone layouts 8274 | -7/Lower Caves | Discovered new exit (range 5) 8303 | -7/Lower Caves | Entered Data Miner 8303 | -7/Data Miner | Discovered new exit (range 7) 8351 | -7/Data Miner | Met Data Miner 8403 | -7/Data Miner | Learned location of Section 7 (-2) 8403 | -7/Data Miner | Acquired the access code to Warlord's prototype stash 8451 | -7/Data Miner | Received God Mode back door access code from Data Miner 8508 | -7/Data Miner | Entered Proximity Caves 8538 | -6/Proximity Caves | Attracted the attention of an 0b10 outpost 8578 | -6/Proximity Caves | Destroyed 8 combat bots 8640 | -6/Proximity Caves | Spotted B-75 Beast 8659 | -6/Proximity Caves | Destroyed B-75 Beast 8744 | -6/Proximity Caves | System corruption reached 10% 9014 | -6/Proximity Caves | Received a Behemoth hack from an annoying Tinkerer 9094 | -6/Proximity Caves | Discovered new exit (range 15) 9141 | -6/Proximity Caves | Entered Factory 9141 | -6/Factory | Accompanied by 1 ally 9141 | -6/Factory | Evolved 2 slots: Propulsion x1, Utility x1 9460 | -6/Factory | Discovered new exit (range 8) 10522 | -6/Factory | Build established: Infiltrator-Skirmisher 10766 | -6/Factory | Identified exit to Lower Caves 11164 | -6/Factory | Discovered new exit (range 15) 12160 | -6/Factory | Entered Lower Caves 12462 | -6/Lower Caves | Build established: Tank 12502 | -6/Lower Caves | Spotted B-75 Beast 12522 | -6/Lower Caves | Destroyed B-75 Beast 12544 | -6/Lower Caves | Discovered new exit (range 11) 12552 | -6/Lower Caves | Learned 4 Factory zone layouts 12591 | -6/Lower Caves | Entered another Lower Caves area 12677 | -6/Lower Caves | Discovered new exit (range 12) 12878 | -6/Lower Caves | Encountered a Warlord checkpoint 13433 | -6/Lower Caves | Discovered new exit (range 5) 13495 | -6/Lower Caves | Entered Zion 13598 | -6/Zion | System corruption cleaned by Quarantine Array 13655 | -6/Zion | Gained Derelict followers 13723 | -6/Zion | Discovered new exit (range 13) 14110 | -6/Zion | Learned location of Armory (-4) 14548 | -6/Zion | Given A8's code to call for help 14846 | -6/Zion | Received a hallucinogenic algorithm 15588 | -6/Zion | Acquired unknown access codes intercepted by a Zionite 15758 | -6/Zion | Entered Proximity Caves 15758 | -5/Proximity Caves | Accompanied by 4 allies 16473 | -5/Proximity Caves | Discovered new exit (range 15) 16565 | -5/Proximity Caves | Entered Factory 16565 | -5/Factory | Evolved 2 slots: Utility x2 16566 | -5/Factory | Identified exit to Upper Caves 16567 | -5/Factory | Identified exit to Factory 17030 | -5/Factory | Fabricated Hvy. Siege Treads (x1) 17748 | -5/Factory | Identified exit to Extension 17840 | -5/Factory | Build established: Scavenger-Tank 17866 | -5/Factory | Entered Extension 18015 | -5/Extension | Rescued a captive Derelict 18015 | -5/Extension | Rescued a captive Derelict 18166 | -5/Extension | First assault squad dispatched 18245 | -5/Extension | Rescued a captive Derelict 18265 | -5/Extension | Rescued a captive Derelict 18423 | -5/Extension | Rescued a captive Derelict 18541 | -5/Extension | Lost 4 allies 18570 | -5/Extension | Rescued a captive Derelict 18790 | -5/Extension | Rescued a captive Derelict 18791 | -5/Extension | Rescued a captive Derelict 18937 | -5/Extension | Rescued a captive Derelict 19406 | -5/Extension | Spotted B-75 Beast 19419 | -5/Extension | Allies destroyed B-75 Beast 19439 | -5/Extension | Spotted B-75 Beast 19462 | -5/Extension | Destroyed B-75 Beast 19475 | -5/Extension | Lost 7 allies 19491 | -5/Extension | Disrupted transfer network 19765 | -5/Extension | Rescued A7 19947 | -5/Extension | Rescued a captive Derelict 19957 | -5/Extension | Rescued a captive Derelict 19976 | -5/Extension | Rescued a captive Derelict 20016 | -5/Extension | Rescued a captive Derelict 20017 | -5/Extension | Rescued a captive Derelict 20102 | -5/Extension | Discovered exit to Factory (range 10) 20105 | -5/Extension | Discovered new exit (range 6) 20145 | -5/Extension | Entered Cetus 20145 | -5/Cetus | Accompanied by 10 allies (A7) 20150 | -5/Cetus | Acquired a Cetus Manufacturing Module code from A7 20172 | -5/Cetus | Spotted Cetus Guard 20172 | -5/Cetus | Spotted Cetus Guard 20172 | -5/Cetus | Spotted Cetus Guard 20172 | -5/Cetus | Spotted Cetus Guard 20177 | -5/Cetus | Allies destroyed Cetus Guard 20178 | -5/Cetus | Allies destroyed Cetus Guard 20188 | -5/Cetus | Allies destroyed Cetus Guard 20190 | -5/Cetus | Allies destroyed Cetus Guard 20377 | -5/Cetus | Started Cetus Manufacturing Module 20402 | -5/Cetus | Manufactured an Enhanced Grunt 20427 | -5/Cetus | Manufactured an Enhanced Grunt 20452 | -5/Cetus | Manufactured an Enhanced Grunt 20477 | -5/Cetus | Manufactured an Enhanced Grunt 20502 | -5/Cetus | Manufactured an Enhanced Grunt 20529 | -5/Cetus | Discovered new exit (range 21) 20589 | -5/Cetus | Spotted Cetus Guard 20590 | -5/Cetus | Spotted Cetus Guard 20593 | -5/Cetus | Spotted Cetus Guard 20595 | -5/Cetus | Spotted Cetus Guard 20599 | -5/Cetus | Allies destroyed Cetus Guard 20618 | -5/Cetus | Allies destroyed Cetus Guard 20620 | -5/Cetus | Allies destroyed Cetus Guard 20621 | -5/Cetus | Discovered exit to Factory (range 21) 20645 | -5/Cetus | Lost 3 allies 20651 | -5/Cetus | Met Revision 17 20751 | -5/Cetus | Entered Archives 20751 | -5/Archives | Accompanied by 10 allies (A7) 20781 | -5/Archives | Met Zhirov 20783 | -5/Archives | Discovered new exit (range 22) 20787 | -5/Archives | Reinforcements dispatched to Archives 20798 | -5/Archives | Discovered new exit (range 19) 20832 | -5/Archives | Reinforcements dispatched to Archives 20842 | -5/Archives | Lost 3 allies 20844 | -5/Archives | Entered Hub_04(d) 20844 | -5/Hub_04(d) | Accompanied by 6 allies 21444 | -5/Hub_04(d) | First assault squad dispatched 21793 | -5/Hub_04(d) | Spotted B-75 Beast 21866 | -5/Hub_04(d) | Lost 3 parts (1n2u) 21923 | -5/Hub_04(d) | Disrupted transfer network 21943 | -5/Hub_04(d) | Destroyed B-75 Beast 21948 | -5/Hub_04(d) | Core integrity fell below 50% 21948 | -5/Hub_04(d) | System corruption reached 10% 22160 | -5/Hub_04(d) | Destroyed 8 combat bots 22167 | -5/Hub_04(d) | Discovered exit to Factory (range 12) 22207 | -5/Hub_04(d) | Entered Factory 22207 | -4/Factory | Evolved 2 slots: Propulsion x1, Utility x1 22666 | -4/Factory | Discovered new exit (range 11) 22718 | -4/Factory | Entered Research 22718 | -3/Research | Evolved 2 slots: Utility x2 22734 | -3/Research | Discovered new exit (range 11) 22918 | -3/Research | Revision forces began assault on 0b10 22973 | -3/Research | Met up with Revision 17++ 23418 | -3/Research | Research terminal network offline 23446 | -3/Research | Lost 4 allies 23462 | -3/Research | Found Gamma Bomb Array 24006 | -3/Research | Build established: Scavenger-Gunner 24149 | -3/Research | Discovered new exit (range 16) 24192 | -3/Research | Identified exit to Research 24227 | -3/Research | Entered another Research area 24227 | -2/Research | Evolved 2 slots: Power x1, Utility x1 24517 | -2/Research | Build established: Scavenger-Tank 24543 | -2/Research | Discovered new exit (range 12) 24569 | -2/Research | Identified exit to Testing 25186 | -2/Research | Discovered new exit (range 16) 25220 | -2/Research | Identified exit to Access 25221 | -2/Research | Entered Access 25221 | -1/Access | Evolved 2 slots: Propulsion x1, Weapon x1 25473 | -1/Access | Build established: Scavenger-Gunner 26871 | -1/Access | Lost 4 parts (2p1u1w) 26935 | -1/Access | Discovered new exit (range 7) 26943 | *** | Escaped! Last Messages --------------- 26867_ H-88 Terminator suffers critical hit (Destroy). 26867_ Destroyed KE Penetrator. 26868_ Acquired 21 matter. 26869_ Penetrated by Slug. 26870_ Slug penetrates H-88 Terminator. 26870_ H-88 Terminator destroyed. 26870_ Slug penetrates Wall. 26871_ Acquired 21 matter. 26877_ Ended siege mode. 26878_ System corrupted: Energy discharge (-182). 26878_ R-10 Processor collects Welding Torch. 26882_ R-10 Processor collects Unknown Engine. 26927_ Connecting with Terminal... >>Open(Door) Sealed Barrier opened. 26935_ The Access Shell folds into the floor. 26935_ EXIT=FOUND [Achievement: Tester] Map ----- +----------------------------------------------------+ | ###""!%%[####### # ????????????????? | | [ !=!=!=%* %%" ?????????????????? | | = ===[!%!! %# ?????????????????? | | "###"### *####### #???????????????????????????? | | ???????######?????# #???????????????????????????? | | ??????????????????# #???????????????????????????? | | ?????????######???# #???????????????????????????? | | ??######## ##### #???????????????????????????? | | ??# #???????????????????????????? | | ??# +???????????????????????????? | | ??????#### ######h#???????????????????????????? | | ?????????## ##????# #???????????????????????????? | | ??????????# #?????# ???w???????????????????????? | | ??????????# #?????####??????????????????????????? | | ??????????# #???????????????????????????????????? | | ??????????# #???????????????????????????????????? | | ??????????# #???????????????????????????????????? | | ??????????# #???????????????????????????????????? | | ??????????# #?????###???????????????????????????? | | ??????????# ####### ##########??????????????????? | | ??????????# """T""" "??????????????????? | | ??????????# """ """ "????BB????????????? | | ??????????# "????BB????????????? | | ??????????# "??????????????????? | | ??????????# "" "??????????????????? | | ??????????# @" "??????????????????? | | ??????????# "??????????????????? | | ??????????# "????BB????????????? | | ??????????# "????BB????????????? | | ??????????# "??????????????????? | | ??????????# ####### ##########??????????????????? | | ??????????# ??????###???????????????????????????? | | ??????????# ????????????????????????????????????? | | ??????????# ????????????????????????????????????? | | ??????????# ????????????????????????????????????? | | ??????????+ ????????????????????????????????????? | | ??????????# ????????????????????????????????????? | | ??????????? ????????????????????????????????????? | | ?????????????????????????????????????????????????? | | ?????????????????????????????????????????????????? | | ?????????????????????????????????????????????????? | | ?????????????????????????????????????????????????? | | ?????????????????????????????????????????????????? | | ?????????????????????????????????????????????????? | | ?????????????????????????????????????????????????? | | ?????????????????????????????????????????????????? | | ?????????????????????????????????????????????????? | | ?????????????????????????????????????????????????? | | ?????????????????????????????????????????????????? | | ?????????????????????????????????????????????????? | +----------------------------------------------------+ Best States ------------- Heat Dissipation 90 Coolant Potential 65 Energy Generation 59 Energy Capacity 815 Matter Stores 300 Matter Capacity 300 Sight Range 22 Terrain Scan Density 10 Jamming Range 16 Base Temperature (-) 100 Armor Coverage 900 Resistance: KI 30 Utility Shielding 66 Weapon Cycling 25 Evasion (%) 55 Targeting Accuracy 8 Target Analysis 8 Recoil Reduction 6 Defensive Hacking 12 Item Schematics ----------------- Huge Storage Unit | -8/Materials | Scanalyzed Adv. Treads | -8/Materials | Scanalyzed Hcp. Storage Unit | -8/Materials | Hacked Combat Drone Bay | -7/Data Miner | Free Lgt. Regenerative Plating | -7/Data Miner | Free Cld. Cesium-ion Thruster | -7/Data Miner | Free Thermal Defense Suite | -7/Data Miner | Free Imp. Heavy Laser | -7/Data Miner | Free Antigrav System | -7/Data Miner | Free Point Defense System | -7/Data Miner | Free Variable Charge Gun | -7/Data Miner | Free Tesla Rifle | -7/Data Miner | Free Imp. Recalibrator | -7/Data Miner | Free Structural Scanner | -6/Factory | Scanalyzed Flamer | -6/Zion | Free Beamcaster | -6/Zion | Free Hvy. Riot Gun | -6/Zion | Free Barrage Gun | -6/Zion | Free Ripper | -6/Zion | Free Focal Shield | -6/Zion | Archive Remote Force Field | -6/Zion | Archive Adv. Melee Analysis Suite | -6/Zion | Archive Lrn. Tractor Beam | -6/Zion | Archive Lgt. Fission Core | -6/Zion | Archive Recoil Nullifier | -6/Zion | Archive Imp. Particle Charger | -6/Zion | Archive Imp. Remote Shield | -6/Zion | Archive Lgt. Antimatter Reactor | -6/Zion | Archive Imp. Core Shielding | -6/Zion | Archive Adv. Trap Extractor | -6/Zion | Archive Imp. Medium Treads | -6/Zion | Archive Enh. Gauss Cannon | -6/Zion | Archive KE Penetrator | -6/Zion | Archive Thermal Shield | -6/Zion | Archive Robot Schematics ------------------ G-50 Soldier | -7/Data Miner | Free W-25 Informer | -7/Data Miner | Free R-10 Processor | -7/Data Miner | Free Y-54 Guardian | -7/Data Miner | Free M-22 Extractor | -7/Data Miner | Free B-48 Gladiator | -7/Data Miner | Free K-01 Serf | -6/Zion | Archive Fabricated ------------ Hvy. Siege Treads | x1 | -5/Factory | Preloaded Alien Tech Used ----------------- None Achievements -------------- Can't Touch This Tester Challenges ------------ None Game ------ Seed UtilityMissileRecalibrator Manual? 0 Play Time 04:37:19 Cumulative 144.6 hours Start 2025.03.04 @ 11:31:07 End 2025.03.04 @ 23:40:37 Sessions 5 Manual Loads 0 Difficulty Rogue Special Mode None Game No. 93 Rogue 93 Adventurer 0 Explorer 0 Win Type 0 Total 12 Types 12/0/0/0/0/0/0/0/0 Lore% 33 Gallery% 50 Achievement% 48 Wizard Run 0 Options --------- Layout 1 ASCII 0 Keyboard 0 Movement Arrows Keybinds 0 Fullscreen 2 Font 24/Terminus Map View 50x35 Zoom Use 0% Tactical HUD 1 Map Filters NONE Filters NONE Steam 0 RUN: 3e0fea57-7668-4279-88f1-ff5a8a98cdf7